bitfinex-derivatives/quotes_SOLF0:USTF0_20241120
["timestamp","ask_amount","ask_price","bid_price","bid_amount"]
[1732114138265,1.1901,240.08,239.98,2.0816]
[1732114138461,10.8402227,240.08,239.98,2.0816]
[1732114138760,2.0813,240.03,239.98,2.0816]
[1732114138963,2.0813,240.03,239.95,16.0486341]
[1732114139161,2.0813,240.03,239.99,2.0816]
[1732114139666,2.0812,240.05,240.01,2.0814]
[1732114140162,2.0812,240.05,239.95,16.0486341]
[1732114140363,2.0812,240.04,239.95,16.0486341]
[1732114140566,9.67713662,240.07,239.95,16.0486341]
[1732114140766,2.4992,240.09,239.95,16.0486341]
[1732114140961,2.0811,240.05,239.98,2.0816]
[1732114141160,2.0811,240.05,239.95,16.0486341]
[1732114141362,9.67712328,240.08,239.95,16.0486341]
[1732114141570,2.0812,240.04,240.01,2.0814]
[1732114141771,9.67712328,240.08,239.95,16.0486341]
[1732114142071,2.0811,240.05,240.0,2.0815]
[1732114142272,9.67712328,240.08,239.95,16.0486341]
[1732114142672,3.26,240.14,239.99,16.0486341]
[1732114142869,9.69637507,240.13,239.99,16.0486341]
[1732114143767,2.0806,240.11,240.06,2.081]
[1732114143964,2.0806,240.11,239.99,16.0486341]
[1732114143965,9.69637507,240.13,239.99,16.0486341]
[1732114144368,9.69637507,240.13,240.07,16.0486341]
[1732114144573,16.0486341,240.24,240.07,16.0486341]
[1732114144574,5.3297665,240.23,240.07,16.0486341]
[1732114144769,28.16167034,240.22,240.07,16.0486341]
[1732114144962,2.0803,240.14,240.07,16.0486341]
[1732114145165,8.82260509,240.2,240.07,16.0486341]
[1732114145374,18.51549807,240.2,240.07,16.0486341]
[1732114145665,2.0697665,240.23,240.07,16.0486341]
[1732114145666,2.0801,240.17,240.07,16.0486341]
[1732114145872,9.69289298,240.18,240.07,16.0486341]
[1732114146071,9.69289298,240.18,240.13,2.0804]
[1732114146268,16.0486341,240.32,240.15,16.0486341]
[1732114146474,18.49624085,240.29,240.19,16.0486341]
[1732114146674,2.0795,240.24,240.18,2.0799]
[1732114146870,9.682566,240.27,240.15,16.0486341]
[1732114147074,9.682566,240.26,240.15,16.0486341]
[1732114147272,7.0634,240.3,240.15,16.0486341]
[1732114147574,9.66710939,240.29,240.15,16.0486341]
[1732114147966,2.0796,240.23,240.17,2.08]
[1732114148168,7.0634,240.3,240.15,16.0486341]
[1732114148369,2.0792,240.27,240.15,16.0486341]
[1732114148568,7.0634,240.3,240.15,16.0486341]
[1732114148774,7.0634,240.3,240.19,16.0486341]
[1732114148775,1.2815,240.3,240.19,16.0486341]
[1732114148974,3.24,240.33,240.19,16.0486341]
[1732114149171,2.079,240.29,240.19,16.0486341]
[1732114149771,3.24,240.33,240.23,16.0486341]
[1732114149971,4.507,240.36,240.23,16.0486341]
[1732114150171,1.267,240.36,240.23,16.0486341]
[1732114150677,1.267,240.36,240.23,2.0795]
[1732114150879,2.0791,240.28,240.19,16.0486341]
[1732114151484,2.079,240.29,240.22,2.0795]
[1732114151777,17.3156341,240.36,240.17,0.5005]
[1732114152679,2.0792,240.27,240.17,0.5005]
[1732114153078,17.3156341,240.36,240.17,0.5005]
[1732114153275,1.267,240.36,240.19,16.0486341]
[1732114154082,1.267,240.36,240.2,2.03608943]
[1732114154384,1.267,240.36,240.19,16.0486341]
[1732114154980,1.267,240.36,240.17,0.5005]
[1732114154981,17.3156341,240.36,240.17,0.5005]
[1732114155179,16.0486341,240.32,240.17,0.5005]
[1732114155381,1.3067,240.31,240.12,16.0486341]
[1732114156183,2.5301,240.31,240.12,16.0486341]
[1732114156378,2.08,240.18,240.12,18.1290341]
[1732114156681,16.0486341,240.2,239.98,3.24]
[1732114156885,2.07052381,240.21,239.98,3.7402]
[1732114156886,16.0486341,240.16,239.98,3.7402]
[1732114157087,16.0486341,240.16,239.96,16.0486341]
[1732114157288,16.0486341,240.12,239.92,16.0486341]
[1732114157586,3.24,240.11,239.96,2.0818]
[1732114157786,1.2602,240.17,240.01,16.0486341]
[1732114158088,2.0801,240.16,240.09,2.0807]
[1732114158285,16.0486341,240.27,240.07,16.0486341]
[1732114158479,7.4889,240.26,240.07,16.0486341]
[1732114158685,2.0796,240.22,240.11,16.0486341]
[1732114158989,3.78,240.26,240.15,16.0486341]
[1732114159383,3.78,240.3,240.15,16.0486341]
[1732114159987,2.0792,240.28,240.19,2.0799]
[1732114160283,5.90430525,240.48,240.24,16.0486341]
[1732114160484,2.0783,240.37,240.27,2.0791]
[1732114160683,1.1909,240.41,240.27,2.0791]
[1732114160884,0.65731781,240.4,240.29,16.0486341]
[1732114161090,0.65732946,240.47,240.33,16.0486341]
[1732114161091,10.23795498,240.45,240.33,16.0486341]
[1732114161285,0.65732946,240.47,240.33,16.0486341]
[1732114161482,0.65732946,240.47,240.38,16.0486341]
[1732114161680,0.65732946,240.47,240.4,2.078]
[1732114161981,16.0486341,240.63,240.42,16.0486341]
[1732114162179,2.0768,240.55,240.41,2.0779]
[1732114162379,9.56936354,240.61,240.38,16.0486341]
[1732114162583,10.87236354,240.61,240.38,16.0486341]
[1732114162791,2.0771,240.52,240.38,16.0486341]
[1732114163083,10.87236354,240.61,240.38,16.0486341]
[1732114163084,3.78,240.56,240.38,16.0486341]
[1732114163589,3.78,240.56,240.44,2.0777]
[1732114164179,3.78,240.56,240.38,16.0486341]
[1732114164482,19.8286341,240.55,240.34,16.0486341]
[1732114164682,3.78,240.54,240.34,16.0486341]
[1732114164987,2.0775,240.47,240.37,2.0782]
[1732114165184,2.0775,240.47,240.34,16.0486341]
[1732114165386,2.12569159,240.81,240.44,16.0486341]
[1732114165591,1.2779,240.6,240.48,16.0486341]
[1732114165992,2.0765,240.58,240.51,2.077]
[1732114166191,1.2779,240.6,240.44,16.0486341]
[1732114166390,1.2779,240.6,240.41,3.78]
[1732114166689,1.2779,240.6,240.4,16.0486341]
[1732114166889,16.0486341,240.59,240.4,16.0486341]
[1732114167085,2.0774,240.48,240.4,16.0486341]
[1732114167285,3.78,240.53,240.36,16.0486341]
[1732114167793,1.1972,240.52,240.36,16.0486341]
[1732114168090,1.1972,240.52,240.34,2.0785]
[1732114168395,1.1972,240.52,240.32,16.0486341]
[1732114168993,2.0775,240.46,240.33,2.0786]
[1732114169195,16.0486341,240.51,240.32,16.0486341]
[1732114169490,1.1972,240.52,240.41,2.0779]
[1732114169491,2.0772,240.5,240.41,2.0779]
[1732114169685,1.2779,240.6,240.4,16.0486341]
[1732114169884,1.2779,240.6,240.44,16.0486341]
[1732114169885,5.2779,240.6,240.44,16.0486341]
[1732114170490,5.2779,240.6,240.48,16.0486341]
[1732114170795,2.0765,240.59,240.51,2.077]
[1732114171191,2.0765,240.59,240.48,16.0486341]
[1732114171393,2.0765,240.59,240.5,2.0772]
[1732114171687,20.0486341,240.67,240.48,16.0486341]
[1732114171885,4.0,240.66,240.52,16.0486341]
[1732114172289,2.0762,240.62,240.52,16.0486341]
[1732114172489,2.0762,240.62,240.54,2.0768]
[1732114172692,4.0,240.66,240.52,16.0486341]
[1732114172892,4.0,240.68,240.52,16.0486341]
[1732114173088,2.0761,240.63,240.52,16.0486341]
[1732114173294,4.0,240.68,240.52,16.0486341]
[1732114173492,20.0486341,240.68,240.48,16.0486341]
[1732114173697,20.0486341,240.68,240.49,2.0773]
[1732114173897,20.0486341,240.68,240.48,16.0486341]
[1732114174193,20.0486341,240.68,240.44,16.0486341]
[1732114174794,2.0769,240.53,240.45,2.0776]
[1732114175095,4.0,240.59,240.44,16.0486341]
[1732114175292,4.0,240.59,240.45,2.0776]
[1732114175593,4.0,240.59,240.26,16.6985]
[1732114175594,4.0,240.59,240.4,16.0486341]
[1732114176292,2.077,240.52,240.45,2.0776]
[1732114176491,4.0,240.59,240.44,16.0486341]
[1732114176892,4.0,240.59,240.36,16.0486341]
[1732114176893,4.0,240.59,240.48,16.0486341]
[1732114177391,2.077,240.52,240.48,16.0486341]
[1732114177593,2.077,240.52,240.44,16.0486341]
[1732114177892,2.0775,240.46,240.4,16.0486341]
[1732114178097,4.0,240.59,240.4,16.0486341]
[1732114178598,4.0,240.58,240.44,16.0486341]
[1732114178799,2.58,240.57,240.44,16.0486341]
[1732114178994,6.19247918,240.68,240.36,20.0486341]
[1732114178995,2.0769,240.53,240.52,16.0486341]
[1732114179192,6.5377,240.63,240.52,16.0486341]
[1732114179798,2.0768,240.54,240.52,16.0486341]
[1732114180292,6.5377,240.63,240.48,16.0486341]
[1732114180499,2.0773,240.49,240.48,16.0486341]
[1732114180710,4.0,240.5,240.17,12.54]
[1732114180922,2.5377,240.48,240.31,16.0486341]
[1732114181311,2.5377,240.48,240.35,16.0486341]
[1732114181711,2.5377,240.48,240.39,16.0486341]
[1732114181917,2.0775,240.47,240.43,16.0486341]
[1732114182104,6.4823,240.56,240.43,16.0486341]
[1732114182105,7.7278,240.56,240.43,16.0486341]
[1732114182511,2.0774,240.48,240.43,16.0486341]
[1732114182811,7.7278,240.56,240.43,16.0486341]
[1732114183108,7.7278,240.56,240.36,16.0486341]
[1732114183615,7.7278,240.56,240.4,16.0486341]
[1732114184209,16.0486341,240.5,240.18,4.76385727]
[1732114184512,2.0778,240.44,240.27,16.0486341]
[1732114184713,7.7044,240.43,240.27,16.0486341]
[1732114185007,4.0,240.42,240.27,16.0486341]
[1732114186211,2.079,240.29,240.27,16.0486341]
[1732114186407,4.0,240.42,240.27,16.0486341]
[1732114186815,4.0,240.42,240.23,16.0486341]
[1732114187009,4.0,240.42,240.27,16.0486341]
[1732114187408,2.0783,240.37,240.27,18.1277341]
[1732114187613,4.0,240.41,240.27,16.0486341]
[1732114188018,2.0791,240.28,240.23,16.0486341]
[1732114188310,4.0,240.41,240.27,16.0486341]
[1732114188518,2.0778,240.43,240.36,2.0784]
[1732114188709,3.7674,240.52,240.36,2.0784]
[1732114188908,3.7674,240.52,240.35,16.0486341]
[1732114189113,2.0782,240.39,240.35,16.0486341]
[1732114189314,16.0486341,240.49,240.31,16.0486341]
[1732114190209,16.0486341,240.45,240.27,16.0486341]
[1732114190411,16.0486341,240.45,240.23,16.0486341]
[1732114190814,2.0792,240.28,240.23,16.0486341]
[1732114191114,4.0,240.38,240.23,16.0486341]
[1732114191311,2.5419,240.37,240.23,16.0486341]
[1732114192417,2.0792,240.27,240.23,16.0486341]
[1732114192615,2.5419,240.37,240.23,16.0486341]
[1732114193112,2.0789,240.31,240.24,2.0794]
[1732114193419,2.5419,240.37,240.19,16.0486341]
[1732114194319,2.0788,240.32,240.2,2.0797]
[1732114194618,2.5419,240.37,240.2,2.0797]
[1732114194811,2.5419,240.37,240.19,16.0486341]
[1732114195117,2.0794,240.25,240.19,16.0486341]
[1732114195513,2.5419,240.37,240.2,2.0798]
[1732114195711,2.5419,240.37,240.19,16.0486341]
[1732114196116,2.0793,240.26,240.2,2.0798]
[1732114196712,18.5905341,240.37,240.2,2.0798]
[1732114196908,2.0796,240.23,240.15,16.0486341]
[1732114197410,18.5905341,240.37,240.16,2.0801]
[1732114197611,18.5905341,240.37,240.15,16.0486341]
[1732114198013,18.5905341,240.37,240.17,2.08]
[1732114198215,18.5905341,240.37,240.15,16.0486341]
[1732114198518,2.0796,240.22,240.17,2.08]
[1732114198816,2.0796,240.22,240.15,16.0486341]
[1732114199013,4.0,240.29,240.15,16.0486341]
[1732114199618,2.0797,240.21,240.15,18.1288341]
[1732114199821,4.0,240.29,240.15,16.0486341]
[1732114201220,4.0,240.29,240.11,16.0486341]
[1732114201413,1.2979,240.28,240.12,2.0804]
[1732114201816,1.2979,240.28,240.11,16.0486341]
[1732114202016,2.0799,240.2,240.11,16.0486341]
[1732114202315,1.2979,240.28,240.11,16.0486341]
[1732114202611,2.0801,240.16,240.11,16.0486341]
[1732114202811,1.2979,240.28,240.07,16.0486341]
[1732114203013,16.0486341,240.25,240.03,16.0486341]
[1732114203215,16.0486341,240.17,239.85,4.1655]
[1732114203415,5.1179,240.16,240.0,16.0486341]
[1732114203630,2.0804,240.14,240.08,16.0486341]
[1732114203914,3.82,240.21,240.08,16.0486341]
[1732114204117,3.82,240.23,240.12,16.0486341]
[1732114204515,2.5453,240.24,240.12,16.0486341]
[1732114204712,2.0799,240.19,240.13,2.0803]
[1732114204920,2.5453,240.24,240.12,16.0486341]
[1732114205322,2.5453,240.24,240.13,2.0803]
[1732114205723,2.5453,240.24,240.12,16.0486341]
[1732114206123,1.2335,240.24,240.12,16.0486341]
[1732114206423,33.78,240.29,240.18,2.0799]
[1732114206619,33.78,240.29,240.16,16.0486341]
[1732114206921,33.78,240.29,240.18,2.0799]
[1732114206922,2.0795,240.23,240.18,2.0799]
[1732114207117,33.78,240.29,240.16,16.0486341]
[1732114207522,2.0793,240.26,240.17,2.08]
[1732114207818,16.0486341,240.36,240.11,2.12624965]
[1732114207819,3.82,240.37,240.2,16.0486341]
[1732114208123,3.82,240.37,240.26,2.0792]
[1732114208322,3.82,240.37,240.24,16.0486341]
[1732114208522,1.2248,240.38,240.24,16.0486341]
[1732114208717,3.82,240.37,240.24,16.0486341]
[1732114209118,1.2248,240.38,240.24,16.0486341]
[1732114209320,5.0909,240.44,240.28,16.0486341]
[1732114209623,2.4192,240.43,240.28,16.0486341]
[1732114210216,2.4192,240.43,240.32,16.0486341]
[1732114210417,3.82,240.44,240.32,16.0486341]
[1732114210617,3.82,240.44,240.35,2.0785]
[1732114210618,2.0779,240.42,240.35,2.0785]
[1732114210827,2.0779,240.42,240.32,16.0486341]
[1732114211120,28.04998687,240.5,240.36,16.0486341]
[1732114211316,3.82,240.49,240.36,18.1270341]
[1732114211627,28.04998687,240.5,240.4,16.0486341]
[1732114211628,1.6622,240.5,240.4,16.0486341]
[1732114211820,0.3996,240.5,240.4,16.0486341]
[1732114212025,0.3996,240.5,240.44,16.0486341]
[1732114213320,0.3996,240.5,240.4,18.1266341]
[1732114213523,0.3996,240.5,240.4,16.0486341]
[1732114213828,0.3996,240.5,240.44,16.0486341]
[1732114214018,0.3996,240.5,240.45,2.0776]
[1732114214222,0.3996,240.5,240.44,16.0486341]
[1732114214527,0.3996,240.5,240.45,2.0776]
[1732114215227,2.4768,240.5,240.44,16.0486341]
[1732114215622,0.3996,240.5,240.4,16.0486341]
[1732114215821,0.3996,240.5,240.36,16.0486341]
[1732114217022,0.3996,240.5,240.36,18.1269341]
[1732114217224,0.3996,240.5,240.32,16.0486341]
[1732114217525,2.0778,240.44,240.37,2.0783]
[1732114217824,0.3996,240.5,240.4,16.0486341]
[1732114218027,0.3996,240.5,240.45,16.0486341]
[1732114218727,0.3996,240.5,240.46,2.0775]
[1732114219126,2.077,240.53,240.46,2.0775]
[1732114219325,3.62,240.65,240.49,16.0486341]
[1732114219724,2.0763,240.61,240.49,18.1259341]
[1732114220025,3.62,240.65,240.49,16.0486341]
[1732114220228,3.62,240.65,240.45,16.0486341]
[1732114220229,2.077,240.53,240.45,16.0486341]
[1732114220527,25.64947931,240.63,240.45,16.0486341]
[1732114220730,9.60084521,240.62,240.45,16.0486341]
[1732114221133,16.0486341,240.59,240.41,16.0486341]
[1732114221435,16.0486341,240.51,240.33,16.0486341]
[1732114221726,4.8041,240.5,240.33,16.0486341]
[1732114222730,2.0778,240.43,240.34,2.0785]
[1732114222923,4.8041,240.5,240.33,16.0486341]
[1732114223331,2.078,240.41,240.33,16.0486341]
[1732114223530,4.8041,240.5,240.29,16.0486341]
[1732114223728,2.0778,240.43,240.29,18.1275341]
[1732114223929,16.0486341,240.47,240.29,16.0486341]
[1732114224225,2.0782,240.39,240.31,2.0788]
[1732114224430,2.4469,240.46,240.31,2.0788]
[1732114225336,1.1841,240.5,240.37,16.0486341]
[1732114225731,2.0778,240.44,240.37,16.0486341]
[1732114226332,1.1841,240.5,240.37,16.0486341]
[1732114227026,3.62,240.49,240.37,16.0486341]
[1732114227228,3.62,240.49,240.33,16.0486341]
[1732114227425,2.0777,240.45,240.33,18.1272341]
[1732114227624,3.62,240.49,240.33,18.1272341]
[1732114227625,3.62,240.49,240.33,16.0486341]
[1732114227826,3.62,240.49,240.28,3.62]
[1732114227827,3.62,240.49,240.29,16.0486341]
[1732114228025,2.0785,240.35,240.29,18.1276341]
[1732114228323,3.62,240.41,240.21,16.0486341]
[1732114228522,6.1815,240.4,240.21,16.0486341]
[1732114229332,16.0486341,240.39,240.21,16.0486341]
[1732114229830,6.1815,240.4,240.25,16.0486341]
[1732114229831,2.5615,240.4,240.25,16.0486341]
[1732114230032,1.2757,240.4,240.29,16.0486341]
[1732114230431,1.2757,240.4,240.32,2.0787]
[1732114230432,2.0783,240.38,240.32,2.0787]
[1732114230628,3.62,240.45,240.33,16.0486341]
[1732114230827,1.2858,240.46,240.37,16.0486341]
[1732114231026,2.0775,240.47,240.39,2.0781]
[1732114231226,3.62,240.51,240.41,16.0486341]
[1732114231735,1.2459,240.58,240.43,2.0778]
[1732114231940,12.08972026,240.58,240.43,2.0778]
[1732114232127,2.077,240.53,240.42,2.0779]
[1732114232326,2.4779,240.58,240.41,16.0486341]
[1732114232737,10.26225509,240.57,240.41,27.96417576]
[1732114232936,9.61063749,240.57,240.41,25.88617576]
[1732114233140,0.65164106,240.56,240.37,25.88617576]
[1732114233333,10.26227855,240.56,240.37,25.88617576]
[1732114233531,25.88617576,240.53,240.33,25.88617576]
[1732114233733,3.62,240.52,240.33,25.88617576]
[1732114234130,0.65179823,240.51,240.33,25.88617576]
[1732114234435,3.62,240.52,240.35,2.0785]
[1732114234436,2.0779,240.42,240.35,2.0785]
[1732114234631,9.6120798,240.51,240.33,25.88617576]
[1732114234831,2.4779,240.58,240.37,25.88617576]
[1732114235033,9.6110482,240.57,240.45,25.88617576]
[1732114235332,2.4779,240.58,240.45,25.88617576]
[1732114236129,2.0768,240.54,240.47,2.0774]
[1732114236336,2.4779,240.58,240.39,3.62]
[1732114236535,2.4779,240.58,240.44,25.88617576]
[1732114236733,2.4779,240.58,240.45,2.0776]
[1732114236930,2.4779,240.58,240.44,25.88617576]
[1732114237134,2.0773,240.49,240.44,25.88617576]
[1732114237331,2.4779,240.58,240.4,25.88617576]
[1732114238034,25.88617576,240.55,240.36,25.88617576]
[1732114238235,2.0779,240.42,240.36,27.96457576]
[1732114238534,3.62,240.48,240.36,25.88617576]
[1732114239435,2.0779,240.42,240.36,27.96457576]
[1732114239829,3.62,240.48,240.32,25.88617576]
[1732114240830,1.2531,240.47,240.32,25.88617576]
[1732114241240,2.0781,240.39,240.33,2.0786]
[1732114241433,2.4286,240.46,240.32,25.88617576]
[1732114241834,2.4286,240.46,240.28,25.88617576]
[1732114242542,2.4286,240.46,240.32,25.88617576]
[1732114243338,2.078,240.41,240.34,2.0786]
[1732114243538,2.4286,240.46,240.32,25.88617576]
[1732114243735,2.4286,240.46,240.28,25.88617576]
[1732114244141,10.26928756,240.45,240.28,25.88617576]
[1732114244339,0.65204459,240.44,240.28,25.88617576]
[1732114244638,9.61730696,240.45,240.28,25.88617576]
[1732114244836,2.4286,240.46,240.28,25.88617576]
[1732114246235,2.4286,240.46,240.16,5.7193589]
[1732114246236,0.65198557,240.45,240.24,25.88617576]
[1732114246540,0.65198557,240.45,240.27,2.0792]
[1732114246742,10.27521581,240.45,240.24,25.88617576]
[1732114246941,0.65198557,240.44,240.24,25.88617576]
[1732114247141,2.0787,240.32,240.26,2.0793]
[1732114247640,2.0786,240.34,240.27,2.0792]
[1732114247832,3.62,240.38,240.27,2.0792]
[1732114248036,3.62,240.38,240.24,25.88617576]
[1732114248235,2.0787,240.33,240.26,2.0792]
[1732114248441,2.0787,240.33,240.24,25.88617576]
[1732114248638,3.62,240.38,240.24,25.88617576]
[1732114248639,2.0786,240.34,240.26,2.0792]
[1732114248942,3.62,240.38,240.16,25.88617576]
[1732114248943,2.03346621,240.36,240.16,25.88617576]
[1732114249246,2.0791,240.28,240.16,27.96627576]
[1732114249448,3.58,240.27,240.16,25.88617576]
[1732114249738,2.0795,240.23,240.17,2.08]
[1732114250039,3.58,240.27,240.12,25.88617576]
[1732114250239,3.58,240.27,239.98,22.87743561]
[1732114250240,3.58,240.27,240.09,25.88617576]
[1732114250441,9.64087632,240.26,240.09,25.88617576]
[1732114250635,9.64087632,240.26,240.13,25.88617576]
[1732114250835,3.58,240.27,240.13,25.88617576]
[1732114251138,2.0797,240.21,240.13,25.88617576]
[1732114251342,3.58,240.27,240.13,25.88617576]
[1732114251535,3.58,240.27,240.02,3.58]
[1732114251844,3.58,240.27,240.1,25.88617576]
[1732114252647,3.58,240.27,240.09,15.97115021]
[1732114253445,9.63405354,240.26,240.09,15.97115021]
[1732114253638,2.0801,240.17,240.09,15.97115021]
[1732114254042,2.0795,240.23,240.16,2.0801]
[1732114254243,15.97115021,240.27,240.09,15.97115021]
[1732114254440,1.2756,240.22,240.05,15.97115021]
[1732114254638,1.2382,240.21,239.93,3.58]
[1732114254840,3.58,240.2,239.93,3.58]
[1732114255038,3.58,240.2,239.99,15.97115021]
[1732114255447,15.97115021,240.19,239.99,15.97115021]
[1732114255841,3.58,240.18,239.99,15.97115021]
[1732114256038,2.0804,240.13,240.05,2.081]
[1732114256248,3.58,240.18,239.99,15.97115021]
[1732114256744,3.58,240.18,240.01,2.0814]
[1732114256745,2.0807,240.09,240.01,2.0814]
[1732114257043,3.58,240.18,239.99,15.97115021]
[1732114257245,2.0809,240.07,239.95,15.97115021]
[1732114257952,2.0809,240.07,239.99,2.0815]
[1732114258251,2.0809,240.07,239.95,15.97115021]
[1732114258647,3.58,240.18,239.95,15.97115021]
[1732114258840,15.97115021,240.11,239.9,19.56777491]
[1732114259045,4.786,240.1,239.95,2.0819]
[1732114259244,4.786,240.1,239.93,15.97115021]
[1732114259447,4.786,240.1,239.9,19.56777491]
[1732114259747,1.206,240.1,239.99,2.0816]
[1732114259950,1.206,240.1,240.0,15.97115021]
[1732114260147,2.0805,240.12,240.05,2.0811]
[1732114260449,4.786,240.18,240.04,15.97115021]
[1732114260855,4.786,240.18,240.0,15.97115021]
[1732114261046,15.97115021,240.15,239.88,15.97115021]
[1732114261253,2.081,240.06,239.97,15.97115021]
[1732114261453,3.58,240.07,239.97,15.97115021]
[1732114262147,1.206,240.18,239.97,15.97115021]
[1732114262352,3.58,240.17,240.02,15.97115021]
[1732114262550,2.0805,240.12,240.06,2.081]
[1732114262747,3.58,240.17,240.02,15.97115021]
[1732114262953,3.58,240.17,239.98,15.97115021]
[1732114263347,15.97115021,240.14,239.94,15.97115021]
[1732114264152,3.58,240.17,239.98,15.97115021]
[1732114264353,2.0809,240.07,239.98,15.97115021]
[1732114264653,1.206,240.18,240.06,15.97115021]
[1732114264850,2.08,240.18,240.11,2.0806]
[1732114265156,4.1562,240.4,240.14,15.97115021]
[1732114265157,1.2691,240.29,240.14,15.97115021]
[1732114265347,2.0797,240.21,240.14,15.97115021]
[1732114265550,1.2691,240.29,240.1,15.97115021]
[1732114265746,15.97115021,240.28,240.06,15.97115021]
[1732114265952,15.97115021,240.23,240.06,15.97115021]
[1732114266153,3.58,240.22,240.02,15.97115021]
[1732114267053,3.58,240.22,240.09,15.97115021]
[1732114267658,3.58,240.28,240.13,15.97115021]
[1732114267953,1.2691,240.29,240.23,2.0795]
[1732114268259,2.4515,240.31,240.23,2.0795]
[1732114268559,2.4515,240.31,240.21,15.97115021]
[1732114268560,1.2647,240.31,240.21,15.97115021]
[1732114268749,2.0787,240.33,240.21,15.97115021]
[1732114269055,2.0784,240.36,240.28,2.079]
[1732114269257,6.1646,240.42,240.25,15.97115021]
[1732114269655,6.1646,240.42,240.26,2.0792]
[1732114269656,2.0786,240.34,240.26,2.0792]
[1732114269853,6.1646,240.42,240.25,15.97115021]
[1732114270248,6.1646,240.42,240.25,18.05045021]
[1732114270657,6.1646,240.42,240.25,15.97115021]
[1732114270960,2.0786,240.34,240.25,15.97115021]
[1732114271160,6.1646,240.42,240.25,15.97115021]
[1732114271653,2.0784,240.36,240.26,2.0792]
[1732114271855,3.58,240.41,240.16,3.58]
[1732114272065,15.97115021,240.4,240.21,15.97115021]
[1732114272559,2.0788,240.32,240.21,15.97115021]
[1732114272754,3.58,240.41,240.25,15.97115021]
[1732114272960,2.0784,240.37,240.25,15.97115021]
[1732114273154,3.58,240.41,240.25,15.97115021]
[1732114274056,2.0781,240.4,240.32,2.0787]
[1732114274251,3.58,240.41,240.29,15.97115021]
[1732114274451,3.58,240.44,240.29,15.97115021]
[1732114274655,19.55115021,240.44,240.25,15.97115021]
[1732114275057,2.0789,240.3,240.21,21.63075021]
[1732114275358,3.58,240.35,240.17,15.97115021]
[1732114275556,2.0792,240.27,240.15,2.0802]
[1732114275752,3.58,240.28,240.13,15.97115021]
[1732114276157,2.0793,240.26,240.19,2.0798]
[1732114276357,2.0793,240.26,240.17,15.97115021]
[1732114276358,3.709,240.34,240.17,15.97115021]
[1732114276560,7.289,240.34,240.17,15.97115021]
[1732114276956,7.289,240.34,240.09,3.58]
[1732114277163,3.709,240.34,240.18,15.97115021]
[1732114277359,3.58,240.39,240.22,15.97115021]
[1732114277563,3.6,240.38,240.22,15.97115021]
[1732114277857,2.0783,240.38,240.31,2.0788]
[1732114278064,3.6,240.45,240.26,15.97115021]
[1732114278564,3.6,240.45,240.29,2.079]
[1732114278767,3.6,240.45,240.26,15.97115021]
[1732114279266,15.97115021,240.44,240.22,15.97115021]
[1732114279467,15.97115021,240.39,240.22,15.97115021]
[1732114280171,2.079,240.3,240.22,15.97115021]
[1732114280464,3.6,240.36,240.18,15.97115021]
[1732114280665,3.6,240.36,240.22,2.0796]
[1732114280862,3.6,240.36,240.18,15.97115021]
[1732114281064,3.6,240.36,240.22,15.97115021]
[1732114281362,3.6,240.36,240.18,15.97115021]
[1732114281566,19.72445021,240.35,240.14,15.97115021]
[1732114282159,15.97115021,240.31,240.1,15.97115021]
[1732114282362,15.97115021,240.27,240.06,15.97115021]
[1732114282665,3.6,240.26,240.06,15.97115021]
[1732114282869,3.6,240.26,240.04,3.6]
[1732114282870,3.6,240.26,240.14,15.97115021]
[1732114283070,2.0537171,240.3,240.18,15.97115021]
[1732114283266,3.6,240.33,240.18,15.97115021]
[1732114283571,3.6,240.33,240.14,15.97115021]
[1732114283768,3.6,240.33,240.21,15.97115021]
[1732114284164,2.0789,240.31,240.25,2.0793]
[1732114284365,0.6523278,240.34,240.25,2.0793]
[1732114284563,0.6523278,240.34,240.21,15.97115021]
[1732114284763,2.0788,240.32,240.25,2.0793]
[1732114284971,0.6523278,240.34,240.25,2.0793]
[1732114285172,0.6523278,240.34,240.21,15.97115021]